fUSD/lending_fUSD_20251215
["ID","MTS","AMOUNT","RATE_DAILY","PERIOD"]
[398534320,1765801844082,-445.598813,0.00018356,2]
[398534321,1765801844091,-151.0,0.00018356,2]
[398534322,1765801844103,-445.598813,0.00018356,2]
[398534323,1765801844114,-717.946667,0.00018356,2]
[398534324,1765801844123,-1359.796361,0.00018356,2]
[398534325,1765801844132,-151.0,0.00018356,2]
[398534326,1765801844141,-151.0,0.00018356,2]
[398534327,1765801844150,-151.0,0.00018356,2]
[398534328,1765801844159,-1359.796361,0.00018356,2]
[398534329,1765801844168,-151.0,0.00018356,2]
[398534330,1765801844177,-717.946667,0.00018356,2]
[398534331,1765801844186,-151.0,0.00018356,2]
[398534332,1765801844195,-1359.796361,0.00018356,2]
[398534333,1765801844204,-717.946667,0.00018356,2]
[398534334,1765801844213,-717.946667,0.00018356,2]
[398534335,1765801844222,-1359.796361,0.00018356,2]
[398534336,1765801844230,-365.25428,0.00018356,2]
[398534337,1765801844239,-365.25428,0.00018356,2]
[398534338,1765801844248,-399.308384,0.00018356,2]
[398534339,1765801844257,-399.308384,0.00018356,2]
[398534340,1765801844266,-182.039087,0.00018356,2]
[398534341,1765801844275,-399.308384,0.00018356,2]
[398534342,1765801844284,-182.039087,0.00018356,2]
[398534343,1765801844292,-399.308384,0.00018356,2]
[398534344,1765801844301,-182.039087,0.00018356,2]
[398534345,1765801844310,-182.039087,0.00018356,2]
[398534346,1765801844319,-151.0,0.00018356,2]
[398534347,1765801844327,-151.0,0.00018356,2]
[398534348,1765801844336,-151.0,0.00018356,2]
[398534349,1765801844345,-151.0,0.00018356,2]
[398534350,1765801844354,-365.25428,0.00018356,2]
[398534351,1765801844362,-365.25428,0.00018356,2]
[398534352,1765801844371,-476.25,0.00018356,2]
[398534353,1765801844380,-476.25,0.00018356,2]
[398534354,1765801844390,-476.25,0.00018356,2]
[398534355,1765801844401,-476.25,0.00018356,2]
[398534356,1765801844410,-681.380871,0.00018356,2]
[398534357,1765801844419,-681.380871,0.00018356,2]
[398534358,1765801844429,-681.380871,0.00018356,2]
[398534359,1765801844438,-681.380871,0.00018356,2]
[398534360,1765801844448,-334.256187,0.00018356,2]
[398534361,1765801844458,-334.256187,0.00018356,2]
[398534362,1765801844468,-334.256187,0.00018356,2]
[398534363,1765801844479,-334.256187,0.00018356,2]
[398534364,1765801844489,-658.528015,0.00018356,2]
[398534365,1765801844501,-151.0,0.00018356,2]
[398534366,1765801844510,-658.528015,0.00018356,2]
[398534367,1765801844520,-151.0,0.00018356,2]
[398534368,1765801844530,-658.528015,0.00018356,2]
[398534369,1765801844539,-658.528015,0.00018356,2]
[398534370,1765801844548,-1914.705039,0.00018356,2]
[398534371,1765801844557,-797.629675,0.00018356,2]
[398534372,1765801844567,-736.443369,0.00018356,2]
[398534373,1765801844576,-1914.705039,0.00018356,2]
[398534374,1765801844586,-797.629675,0.00018356,2]
[398534375,1765801844596,-736.443369,0.00018356,2]
[398534376,1765801844605,-1914.705039,0.00018356,2]
[398534377,1765801844615,-797.629675,0.00018356,2]
[398534378,1765801844624,-1914.705039,0.00018356,2]
[398534379,1765801844634,-797.629675,0.00018356,2]
[398534380,1765801844648,-151.0,0.00018356,2]
[398534381,1765801844658,-151.0,0.00018356,2]
[398534382,1765801844669,-151.0,0.00018356,2]
[398534383,1765801844679,-88051.74,0.00018356,2]
[398534384,1765801844690,-168.0,0.0001836,2]
[398534385,1765801844700,-1109.73837565,0.00018364,2]
[398534386,1765801844711,-456.0,0.00018369,2]
[398534387,1765801844722,-500.0,0.00018369,2]
[398534388,1765801845148,-552.0,0.00018369,2]
[398534389,1765801845159,-150.0,0.00018417,2]
[398534390,1765801845169,-800.0,0.000185,2]
[398534391,1765801845178,-456.0,0.00018506,2]
[398534392,1765801845188,-437.85999049,0.00018506,2]
[398534393,1765801845198,-552.0,0.00018506,2]
[398534394,1765801845207,-150.0,0.00018512,2]
[398534395,1765801845216,-150.0,0.00018512,2]
[398534396,1765801845225,-1571.89,0.00018532,2]
[398534397,1765801845234,-151.0,0.00018533,2]
[398534398,1765801845244,-152.290121,0.00018533,2]
[398534399,1765801845253,-151.0,0.00018533,2]
[398534400,1765801845262,-151.0,0.00018533,2]
[398534401,1765801845272,-151.0,0.00018533,2]
[398534402,1765801845282,-151.0,0.00018533,2]
[398534403,1765801845291,-151.0,0.00018533,2]
[398534404,1765801845301,-151.0,0.00018533,2]
[398534405,1765801845310,-9999.99,0.00018533,2]
[398534406,1765801845319,-164.17,0.00018537,2]
[398534407,1765801845329,-543.7,0.0001854,2]
[398534408,1765801845339,-160.85,0.00018576,2]
[398534409,1765801845349,-273.62,0.00018579,2]
[398534410,1765801845359,-323.34,0.00018586,2]
[398534411,1765801845368,-2000.0,0.00018595,2]
[398534412,1765801845377,-500.0,0.00018595,2]
[398534413,1765801845386,-150.0,0.00018607,2]
[398534414,1765801845395,-150.0,0.00018607,2]
[398534415,1765801845404,-150.0,0.00018607,2]
[398534416,1765801845413,-153.50207072,0.00018614,2]
[398534417,1765801845423,-456.0,0.00018643,2]
[398534418,1765801845432,-552.0,0.00018643,2]
[398534419,1765801845441,-152.0,0.00018667,2]
[398534420,1765801845450,-152.0,0.00018667,2]
[398534421,1765801845460,-152.0,0.00018667,2]
[398534422,1765801845469,-152.0,0.00018667,2]
[398534423,1765801845478,-152.0,0.00018667,2]
[398534424,1765801845488,-152.0,0.00018667,2]
[398534425,1765801845497,-152.0,0.00018667,2]
[398534426,1765801845508,-153.849405,0.00018667,2]
[398534427,1765801845519,-154.0,0.00018667,2]
[398534428,1765801845528,-649.0,0.00018668,2]
[398534429,1765801845539,-500.0,0.0001867,3]
[398534430,1765801845549,-649.0,0.00018708,2]
[398534431,1765801845559,-991.24217715,0.00018715,2]
[398534432,1765801845568,-1502.0,0.00018746,2]
[398534433,1765801845578,-352.35944847,0.00018746,2]
[398534434,1765801845588,-1000.0,0.0001876,2]
[398534435,1765801845598,-456.0,0.0001878,2]
[398534436,1765801845609,-552.0,0.0001878,2]
[398534437,1765801845619,-649.0,0.00018793,2]
[398534438,1765801845628,-150.0,0.00018796,2]
[398534439,1765801845639,-182.06,0.00018799,2]
[398534440,1765801845650,-150.91,0.000188,2]
[398534441,1765801845659,-150.91,0.000188,2]
[398534442,1765801845670,-150.91,0.000188,2]
[398534443,1765801845680,-150.91,0.000188,2]
[398534444,1765801845690,-150.91,0.000188,2]
[398534445,1765801845699,-150.91,0.000188,2]
[398534446,1765801845708,-150.91,0.000188,2]
[398534447,1765801845718,-150.91,0.000188,2]
[398534448,1765801845730,-150.91,0.000188,2]
[398534449,1765801845739,-150.91,0.000188,2]
[398534450,1765801845748,-150.91,0.000188,2]
[398534451,1765801845757,-150.91,0.000188,2]
[398534452,1765801845767,-150.91,0.000188,2]
[398534453,1765801845776,-150.91,0.000188,2]
[398534454,1765801845788,-150.91,0.000188,2]
[398534455,1765801845799,-150.91,0.000188,2]
[398534456,1765801845808,-150.91,0.000188,2]
[398534457,1765801845817,-150.91,0.000188,2]
[398534458,1765801845827,-150.91,0.000188,2]
[398534459,1765801845837,-150.91,0.000188,2]
[398534460,1765801845847,-150.91,0.000188,2]
[398534461,1765801845856,-150.91,0.000188,2]
[398534462,1765801845866,-150.91,0.000188,2]
[398534463,1765801845877,-150.91,0.000188,2]
[398534464,1765801845895,-150.91,0.000188,2]
[398534465,1765801845904,-1571.96757794,0.00018806,2]
[398534466,1765801845914,-543.7,0.00018814,2]
[398534467,1765801845924,-151.0,0.00018818,2]
[398534468,1765801845934,-582.1189783,0.00018822,2]
[398534469,1765801845944,-200.0,0.00018848,2]
[398534470,1765801845954,-500.0,0.00018862,2]
[398534471,1765801845963,-587.0,0.00018884,2]
[398534472,1765801845973,-157.8093672,0.000189,2]
[398534473,1765801845983,-153.50207072,0.000189,2]
[398534474,1765801845992,-1000.0,0.000189,2]
[398534475,1765801846002,-223.29141208,0.00018904,2]
[398534476,1765801846012,-714.9196561,0.00018908,2]
[398534477,1765801846021,-155.11,0.00018916,2]
[398534478,1765801846031,-456.0,0.00018917,2]
[398534479,1765801846042,-552.0,0.00018917,2]
[398534480,1765801846051,-500.0,0.00018973,2]
[398534481,1765801846061,-161.9068601,0.00018973,2]
[398534482,1765801846071,-500.0,0.00018973,2]
[398534483,1765801846080,-1000.20571659,0.00018973,2]
[398534484,1765801846090,-501.48299685,0.00018973,2]
[398534485,1765801846100,-500.0,0.00018973,2]
[398534486,1765801846109,-500.0,0.00018973,2]
[398534487,1765801846119,-500.0,0.00018973,2]
[398534488,1765801846128,-500.0,0.00018973,2]
[398534489,1765801846138,-500.0,0.00018973,2]
[398534490,1765801846148,-500.0,0.00018973,2]
[398534491,1765801846158,-162.12244894,0.00018973,2]
[398534492,1765801846167,-506.23953734,0.00018973,2]
[398534493,1765801846177,-500.0,0.00018973,2]
[398534494,1765801846187,-500.0,0.00018973,2]
[398534495,1765801846198,-500.0,0.00018973,2]
[398534496,1765801846208,-500.0,0.00018973,2]
[398534497,1765801846218,-500.0,0.00018973,2]
[398534498,1765801846228,-500.0,0.00018973,2]
[398534499,1765801846237,-500.0,0.00018973,2]
[398534500,1765801846248,-500.0,0.00018973,2]
[398534501,1765801846259,-160.44286532,0.00018973,2]
[398534502,1765801846268,-500.0,0.00018973,2]
[398534503,1765801846279,-500.0,0.00018973,2]
[398534504,1765801846289,-501.4576777,0.00018973,2]
[398534505,1765801846299,-500.0,0.00018973,2]
[398534506,1765801846308,-500.0,0.00018973,2]
[398534507,1765801846318,-555.43018696,0.00018973,2]
[398534508,1765801846327,-500.0,0.00018973,2]
[398534509,1765801846336,-500.0,0.00018973,2]
[398534510,1765801846346,-159.96663374,0.00018973,2]
[398534511,1765801846356,-500.0,0.00018973,2]
[398534512,1765801846365,-500.0,0.00018973,2]
[398534513,1765801846375,-500.0,0.00018973,2]
[398534514,1765801846384,-150.0,0.00018973,2]
[398534515,1765801846394,-500.0,0.00018973,2]
[398534516,1765801846403,-156.41020284,0.00018973,2]
[398534517,1765801846413,-206.44157274,0.00018973,2]
[398534518,1765801846422,-500.0,0.00018973,2]
[398534519,1765801846432,-500.0,0.00018973,2]
[398534520,1765801846441,-500.0,0.00018973,2]
[398534521,1765801846450,-500.0,0.00018973,2]
[398534522,1765801846460,-500.0,0.00018973,2]
[398534523,1765801846469,-166.7753196,0.00018973,2]
[398534524,1765801846479,-500.0,0.00018973,2]
[398534525,1765801846488,-500.0,0.00018973,2]
[398534526,1765801846498,-161.48542823,0.00018973,2]
[398534527,1765801846507,-500.0,0.00018973,2]
[398534528,1765801846516,-529.55761346,0.00018973,2]
[398534529,1765801846524,-505.79891275,0.00018973,2]
[398534530,1765801846534,-500.0,0.00018973,2]
[398534531,1765801846543,-500.0,0.00018973,2]
[398534532,1765801846553,-160.9490228,0.00018973,2]
[398534533,1765801846569,-374.08576034,0.00018973,2]
[398534534,1765801846579,-220.08691994,0.00018973,2]
[398534535,1765801846589,-500.0,0.00018973,2]
[398534536,1765801846598,-500.0,0.00018973,2]
[398534537,1765801846608,-162.23351129,0.00018973,2]
[398534538,1765801846618,-500.0,0.00018973,2]
[398534539,1765801846628,-500.0,0.00018973,2]
[398534540,1765801846638,-500.0,0.00018973,2]
[398534541,1765801846648,-500.0,0.00018973,2]
[398534542,1765801846658,-500.0,0.00018973,2]
[398534543,1765801846667,-500.18177596,0.00018973,2]
[398534544,1765801846678,-518.33993924,0.00018973,2]
[398534545,1765801846687,-500.83863982,0.00018973,2]
[398534546,1765801846698,-330.42255021,0.00018973,2]
[398534547,1765801846707,-500.0,0.00018973,2]
[398534548,1765801846717,-400.74376215,0.00018973,2]
[398534549,1765801846726,-500.0,0.00018973,2]
[398534550,1765801846736,-334.27240777,0.00018973,2]
[398534551,1765801846746,-500.36886622,0.00018973,2]
[398534552,1765801846755,-509.04453803,0.00018973,2]
[398534553,1765801846765,-328.90720081,0.00018973,2]
[398534554,1765801846775,-522.5837689,0.00018973,2]
[398534555,1765801846785,-500.0,0.00018973,2]
[398534556,1765801846795,-500.0,0.00018973,2]
[398534557,1765801846804,-164.6917699,0.00018973,2]
[398534558,1765801846814,-282.36091791,0.00018973,2]
[398534559,1765801846824,-207.31663345,0.00018973,2]
[398534560,1765801846834,-500.0,0.00018973,2]
[398534561,1765801846844,-500.0,0.00018973,2]
[398534562,1765801846853,-500.3035834,0.00018973,2]
[398534563,1765801846863,-159.3021959,0.00018973,2]
[398534564,1765801846873,-500.0,0.00018973,2]
[398534565,1765801846887,-500.0,0.00018973,2]
[398534566,1765801846896,-500.0,0.00018973,2]
[398534567,1765801846906,-344.37083674,0.00018973,2]
[398534568,1765801846916,-500.0,0.00018973,2]
[398534569,1765801846932,-500.0,0.00018973,2]
[398534570,1765801846942,-508.74452516,0.00018973,2]
[398534571,1765801846953,-168.43051183,0.00018973,2]
[398534572,1765801846966,-500.0,0.00018973,2]
[398534573,1765801846978,-500.0,0.00018973,2]
[398534574,1765801846988,-165.41844383,0.00018973,2]
[398534575,1765801846998,-500.0,0.00018973,2]
[398534576,1765801847008,-500.0,0.00018973,2]
[398534577,1765801847018,-341.0,0.00018986,2]
[398534578,1765801847027,-171.7469753,0.00018986,2]
[398534579,1765801847039,-216.38478482,0.00018986,2]
[398534580,1765801847048,-193.88342299,0.00018986,2]
[398534581,1765801847058,-250.72416972,0.00018986,2]
[398534582,1765801847068,-157.43451246,0.00018986,2]
[398534583,1765801847078,-150.0,0.00018986,2]
[398534584,1765801847088,-150.0,0.00018986,2]
[398534585,1765801847098,-150.00000001,0.00018986,2]
[398534586,1765801847108,-150.0,0.00018986,2]
[398534587,1765801847118,-150.00000001,0.00018986,2]
[398534588,1765801847128,-218.26628836,0.00018986,2]
[398534589,1765801847137,-840.0,0.0001899,2]
[398534590,1765801847147,-151.0,0.00018997,2]
[398534591,1765801847157,-307.71551057,0.00018999,2]
[398534592,1765801847167,-500.0,0.00018999,2]
[398534593,1765801847177,-500.0,0.00018999,2]
[398534594,1765801847186,-500.0,0.00018999,2]
[398534595,1765801847196,-500.0,0.00018999,2]
[398534596,1765801847206,-500.0,0.00018999,2]
[398534597,1765801847215,-500.0,0.00018999,2]
[398534598,1765801847225,-500.0,0.00018999,2]
[398534599,1765801847234,-500.0,0.00018999,2]
[398534600,1765801847243,-500.0,0.00018999,2]
[398534601,1765801847253,-500.0,0.00018999,2]
[398534602,1765801847262,-500.0,0.00018999,2]
[398534603,1765801847272,-500.0,0.00018999,2]
[398534604,1765801847282,-500.0,0.00018999,2]
[398534605,1765801847297,-500.0,0.00018999,2]
[398534606,1765801847307,-500.0,0.00018999,2]
[398534607,1765801847317,-500.0,0.00018999,2]
[398534608,1765801847327,-161.16143999,0.00018999,2]
[398534609,1765801847337,-500.0,0.00018999,2]
[398534610,1765801847347,-500.0,0.00018999,2]
[398534611,1765801847358,-500.0,0.00018999,2]
[398534612,1765801847368,-500.0,0.00018999,2]
[398534613,1765801847378,-500.0,0.00018999,2]
[398534614,1765801847389,-500.0,0.00018999,2]
[398534615,1765801847400,-500.0,0.00018999,2]
[398534616,1765801847410,-266.73524833,0.00018999,2]
[398534617,1765801847420,-1999.0,0.00018999,2]
[398534618,1765801847430,-2500.0,0.00018999,2]
[398534619,1765801847440,-300.0,0.00018999,2]
[398534620,1765801847452,-2058.30906484,0.00019,7]
[398534621,1765801847463,-6861.03021613,0.00019,2]
[398534622,1765801847474,-4802.72115129,0.00019,4]
[398534623,1765801847484,-159442.45820532,0.00019,2]
[398534624,1765801848313,-261.19721545,0.0001699,2]
[398534625,1765801848323,-183.786785,0.00017,2]
[398534626,1765801848332,-233.75063871,0.00017,2]
[398534627,1765801848342,-151.0,0.00017,2]
[398534628,1765801848351,-183.786785,0.00017,2]
[398534629,1765801848360,-1607.0,0.00017679,2]
[398534630,1765801848370,-649.0,0.00018251,2]
[398534631,1765801848379,-183.786785,0.00018356,2]
[398534632,1765801848388,-183.786785,0.00018356,2]
[398534633,1765801848398,-150.91,0.000188,2]
[398534634,1765801848407,-150.91,0.000188,2]
[398534635,1765801848417,-150.91,0.000188,2]
[398534636,1765801848426,-150.91,0.000188,2]
[398534637,1765801848435,-150.91,0.000188,2]
[398534638,1765801848444,-150.91,0.000188,2]
[398534639,1765801848462,-150.91,0.000188,2]
[398534640,1765801848473,-150.91,0.000188,2]
[398534641,1765801848482,-150.91,0.000188,2]
[398534642,1765801848492,-150.91,0.000188,2]
[398534643,1765801848501,-150.91,0.000188,2]
[398534644,1765801848510,-150.91,0.000188,2]
[398534645,1765801848519,-150.91,0.000188,2]
[398534646,1765801848530,-150.91,0.000188,2]
[398534647,1765801848540,-150.91,0.000188,2]
[398534648,1765801848549,-150.91,0.000188,2]
[398534649,1765801848558,-150.91,0.000188,2]
[398534650,1765801848568,-150.91,0.000188,2]
[398534651,1765801848577,-150.91,0.000188,2]
[398534652,1765801848587,-150.91,0.000188,2]
[398534653,1765801848596,-150.91,0.000188,2]
[398534654,1765801848606,-150.91,0.000188,2]
[398534655,1765801848616,-150.91,0.000188,2]
[398534656,1765801848625,-150.91,0.000188,2]
[398534657,1765801848635,-150.91,0.000188,2]
[398534658,1765801848645,-150.91,0.000188,2]
[398534659,1765801848655,-5513.84500585,0.00019,2]
[398534660,1765801848669,-1417.67063,0.00019,2]
[398534661,1765801848683,-1573.28442931,0.00019,2]
[398534662,1765801848695,-1204.49438721,0.00019,2]
[398534663,1765801848729,-14487.2432989,0.00019,2]
[398534664,1765801848758,-150.91,0.000188,2]
[398534665,1765801848767,-1306.68175383,0.00019,2]
[398534666,1765801853047,-212.802061,0.00017,2]
[398534667,1765801853056,-183.786785,0.00017,2]
[398534668,1765801853067,-212.802061,0.00017,2]
[398534669,1765801853076,-183.786785,0.00017,2]
[398534670,1765801853086,-480.76,0.00017123,2]
[398534671,1765801853095,-927.76,0.00018082,2]
[398534672,1765801853105,-212.802061,0.00018356,2]
[398534673,1765801853114,-183.786785,0.00018356,2]
[398534674,1765801853123,-212.802061,0.00018356,2]
[398534675,1765801853133,-183.786785,0.00018356,2]
[398534676,1765801853142,-150.91,0.000188,2]
[398534677,1765801853151,-150.91,0.000188,2]
[398534678,1765801853160,-150.91,0.000188,2]
[398534679,1765801853169,-150.91,0.000188,2]
[398534680,1765801853179,-150.91,0.000188,2]
[398534681,1765801853188,-150.91,0.000188,2]
[398534682,1765801853197,-150.91,0.000188,2]
[398534683,1765801853206,-150.91,0.000188,2]
[398534684,1765801853216,-150.91,0.000188,2]
[398534685,1765801853226,-150.91,0.000188,2]
[398534686,1765801853235,-150.91,0.000188,2]
[398534687,1765801853244,-150.91,0.000188,2]
[398534688,1765801853254,-150.91,0.000188,2]
[398534689,1765801853263,-150.91,0.000188,2]
[398534690,1765801853273,-150.91,0.000188,2]
[398534691,1765801853282,-150.91,0.000188,2]
[398534692,1765801853291,-150.91,0.000188,2]
[398534693,1765801853301,-150.91,0.000188,2]
[398534694,1765801853310,-150.91,0.000188,2]
[398534695,1765801853320,-150.91,0.000188,2]
[398534696,1765801853329,-150.91,0.000188,2]
[398534697,1765801853339,-150.91,0.000188,2]
[398534698,1765801853349,-150.91,0.000188,2]
[398534699,1765801853358,-150.91,0.000188,2]
[398534700,1765801853368,-150.91,0.000188,2]
[398534701,1765801853381,-150.91,0.000188,2]
[398534702,1765801853391,-150.91,0.000188,2]
[398534703,1765801853400,-585462.4258154,0.00019,2]
[398534704,1765801853416,-150.91,0.000188,2]
[398534705,1765801853426,-794.98473246,0.00019,2]
[398534706,1765801853446,-49482.4494159,0.00019,2]
[398534707,1765801853458,-167566.0,0.00019,2]
[398534708,1765801853469,-29415.62555829,0.00019,2]
[398534709,1765801853480,-109302.27273072,0.00019,2]
[398534710,1765801853491,-201586.1665884,0.00019,2]
[398534711,1765801853502,-2150.3,0.00019,2]
[398534712,1765801853513,-306.94332034,0.00019,2]
[398534713,1765801859536,35359.9756,0.00015693,2]
[398534714,1765801950567,1000.0,0.00013699,2]
[398534715,1765802015907,853.98,8.621e-05,2]
[398534716,1765802015951,853.98,9.075e-05,2]
[398534717,1765802016005,853.98,9.529e-05,2]
[398534718,1765802016050,853.98,9.982e-05,2]
[398534719,1765802016153,853.98,0.00010436,2]
[398534720,1765802016346,853.98,0.0001089,2]
[398534721,1765802016558,853.98,0.00011344,2]
[398534722,1765802017479,853.98,0.00011797,2]
[398534723,1765802017517,853.98,0.00012251,2]
[398534724,1765802017553,853.98,0.00012705,2]
[398534725,1765802018050,853.98,0.00013159,2]
[398534726,1765802018237,853.98,0.00013612,2]
[398534727,1765802018450,853.98,0.00014066,2]
[398534728,1765802018640,853.98,0.0001452,2]
[398534729,1765802018861,853.98,0.00014974,2]
[398534730,1765802019078,853.98,0.00015427,2]
[398534731,1765802028266,149118.7167,0.00015693,2]
[398534735,1765802496852,1000.0,0.000155,2]
[398534770,1765803031540,-629.67,0.00015881,2]
[398534771,1765803031594,-224.31,0.00015881,2]
[398534772,1765803031604,-300.0,0.00016172,2]
[398534773,1765803031614,-300.0,0.00016172,2]
[398534774,1765803031624,-500.0,0.00016173,2]
[398534775,1765803031633,-25.30288932,0.00016173,2]
[398534776,1765803031644,-354.04158741,0.00016173,2]
[398534777,1765803031654,-500.0,0.00016173,2]
[398534778,1765803031663,-506.79331904,0.00016173,2]
[398534779,1765803031672,-500.0,0.00016173,2]
[398534780,1765803031682,-323.63151938,0.00016173,2]
[398534781,1765803031691,-853.98,0.00016335,2]
[398534782,1765803031700,-1163.20880962,0.00016438,2]
[398534783,1765803031723,-5409.76119038,0.00016438,2]
[398534784,1765803031733,-500.0,0.00016721,2]
[398534785,1765803031742,-1000.0,0.00016721,2]
[398534786,1765803031750,-853.98,0.00016789,2]
[398534787,1765803031763,-151.0,0.00016969,2]
[398534788,1765803031776,-153.01637236,0.0001698,2]
[398534789,1765803031785,-9211.34798985,0.0001698,2]
[398534790,1765803031795,-1502.0,0.0001698,2]
[398534791,1765803031803,-352.35944847,0.0001698,2]
[398534792,1765803031812,-668.65185757,0.0001698,2]
[398534794,1765803031822,-300.0,0.0001698,2]
[398534796,1765803031831,-500.0,0.00016999,2]
[398534798,1765803031840,-500.0,0.00016999,2]
[398534800,1765803031849,-839.67,0.00016999,2]
[398534802,1765803031858,-500.0,0.00016999,2]
[398534803,1765803031866,-500.0,0.00016999,2]
[398534805,1765803031874,-500.0,0.00016999,2]
[398534807,1765803031883,-500.0,0.00016999,2]
[398534809,1765803031892,-500.0,0.00016999,2]
[398534811,1765803031901,-500.0,0.00016999,2]
[398534813,1765803031911,-500.0,0.00016999,2]
[398534815,1765803031920,-500.0,0.00016999,2]
[398534817,1765803031929,-500.0,0.00016999,2]
[398534819,1765803031938,-500.0,0.00016999,2]
[398534820,1765803031948,-500.0,0.00016999,2]
[398534821,1765803031957,-500.0,0.00016999,2]
[398534822,1765803031966,-500.0,0.00016999,2]
[398534824,1765803031976,-500.0,0.00016999,2]
[398534826,1765803031985,-500.0,0.00016999,2]
[398534828,1765803031994,-307.71551057,0.00016999,2]
[398534830,1765803032003,-500.0,0.00016999,2]
[398534831,1765803032012,-500.0,0.00016999,2]
[398534834,1765803032022,-500.0,0.00016999,2]
[398534836,1765803032032,-500.0,0.00016999,2]
[398534837,1765803032041,-500.0,0.00016999,2]
[398534838,1765803032050,-500.0,0.00016999,2]
[398534839,1765803032059,-500.0,0.00016999,2]
[398534840,1765803032068,-500.0,0.00016999,2]
[398534841,1765803032077,-500.0,0.00016999,2]
[398534842,1765803032087,-500.0,0.00016999,2]
[398534843,1765803032096,-500.0,0.00016999,2]
[398534844,1765803032105,-500.0,0.00016999,2]
[398534845,1765803032114,-481.25235646,0.00017005,2]
[398534846,1765803032124,-570.9,0.00017051,2]
[398534847,1765803032133,-500.0,0.00017088,2]
[398534848,1765803032142,-150.0,0.00017088,2]
[398534849,1765803032151,-150.0,0.00017088,2]
[398534850,1765803032160,-150.0,0.00017088,2]
[398534851,1765803032169,-218.26628836,0.00017088,2]
[398534852,1765803032178,-298.69511274,0.00017088,2]
[398534853,1765803032188,-150.0,0.00017088,2]
[398534854,1765803032198,-150.0,0.00017088,2]
[398534855,1765803032208,-150.0,0.00017088,2]
[398534856,1765803032218,-150.00000001,0.00017088,2]
[398534857,1765803032226,-150.65844906,0.00017088,2]
[398534858,1765803032235,-150.0,0.00017088,2]
[398534859,1765803032245,-150.91550183,0.00017088,2]
[398534860,1765803032254,-150.6650232,0.00017088,2]
[398534861,1765803032265,-150.00000001,0.00017088,2]
[398534862,1765803032275,-150.0,0.00017088,2]
[398534863,1765803032285,-152.0,0.000171,2]
[398534864,1765803032294,-152.0,0.000171,2]
[398534865,1765803032303,-152.0,0.000171,2]
[398534866,1765803032314,-154.0,0.000171,2]
[398534867,1765803032323,-224.42,0.00017123,2]
[398534868,1765803032332,-704.07,0.00017123,2]
[398534869,1765803032341,-223.73754877,0.00017128,2]
[398534870,1765803032351,-1000.0,0.00017139,2]
[398534871,1765803032360,-200.0,0.00017141,2]
[398534872,1765803032370,-250.0,0.00017155,2]
[398534873,1765803032379,-70.11268113,0.00017164,2]
[398534874,1765803032390,-453.61393552,0.00017164,2]
[398534875,1765803032403,-1422.63899574,0.00017164,2]
[398534876,1765803037682,-2081.63438761,0.00017164,2]